Workbook

Sheet Countries (hidden)
A1: CountryName
A2: الامارات العربية المتحدة
A3: الجمهورية التونسية
A4: الجمهورية العربية السورية
A5: الجمهورية اللبنانية
A6: الجمهورية اليمنية
A7: المملكة الأردنية الهاشمية
A8: المملكة العربية السعودية
A9: المملكة المغربية
A10: جمهورية مصر العربية
A11: دولة قطر
A12: سلطنة عمان
A13: فلسطين
A14: مملكة البحرين

Sheet Home Page
C1: Analysis of Road Safety in the
D2: Arab Countries
B11: Gender Analysis
B12: Population Literates Status
B13: Drivers' Analysis
B14: Vehicles' Analysis
B15: Vehicles' Analysis - 2
B16: Roads' Analysis
B17: Fines' Analysis
B18: Accidents' Analysis
B19: Injures' Analysis
A20: Select Country from the List
A21: المملكة المغربية
B22: Accident Analysis - Factors
B23: Accident Categories
B24: Vehicles Category Analysis
B25: Accidents Results
B26: Age Periods Analysis per Gender
B27: Involved residents as age category
B28: Involved residents as age percentage as status
B29: Drivers Analysis per Age Period
B30: Accidents analysis - Drivers errors
B31: Accidents analysis - Drivers errors percentage
B32: Injury Analysis
B33: Injuries percentage
B34: Accidents analysis - Lighting Conditions
B35: Accidents analysis - Road Condition
B36: Accidents analysis - Road Type
B37: Accidents analysis - Road User Condition
B38: Accidents analysis - Weather Condition
J39: Prepared by:
J40: Arab Union of Land Transport
J42: Executed by:
J43: Amin N. Muwafi
J44: amin_muwafi@yahoo.com

Sheet Sheet1 (hidden)
A1: CountryName | B1: NoOfResidents | C1: Area | D1: NoOfMales | E1: NoOfFemales | F1: MalesToResidents | G1: FemalesToResidents | H1: DriversMalePercentage | I1: Column1 | J1: DriversFemalePercentage | K1: Column2 | L1: NoOfVehicles | M1: VehiclesToPopulation | N1: TotalRoadsLength | O1: TotalRoadsLenghtToArea | P1: Column4 | Q1: AvgAccidentsPerYear | R1: Column5 | S1: AvgAccidentsToRoadLength | T1: AvgAccidentsToNoOfResidents | U1: Column6 | V1: NoOfInjuresPerYear | W1: NoOfInjuriesToNoOfResidents | X1: AvgAccidentCostPerYear | Y1: RegisteringAccidents | Z1: AccidentsLocationsSpecification | AA1: SpecialInspectors | AB1: AnnualMaintenance | AC1: TrafficSigns | AD1: MinimumLicenseAge | AE1: Expr1 | AF1: RoadSafetyActivities | AG1: FlyingAmbulance | AH1: GovernmentCouncils | AI1: PrivateCouncils | AJ1: No of Vehicles Involved In Accidents | AK1: Total Fines Per Year | AL1: Total Fines To No Of Vehicles | AM1: Column3 | AN1: Number of Literates | AO1: Number of Non Literates | AP1: Literates to Residents | AQ1: Non Literates to Residents | AR1: Involved Vehicles to total Vehicles | AS1: Avg Accidents To No Of Vehicles | AT1: Injuries To Vehicles
A2: الامارات العربية المتحدة | B2: 4320000 | C2: 83600 | D2: 2929000 | E2: 1391000 | F2: 67.8 | G2: 32.2 | H2: 0 | I2: =Table_viewCountriesTransactions[[#This Row],[DriversMalePercentage]]/Table_viewCountriesTransactions[[#This Row],[NoOfMales]]*1000 -> 0 | J2: 0 | K2: =Table_viewCountriesTransactions[[#This Row],[DriversFemalePercentage]]/Table_viewCountriesTransactions[[#This Row],[NoOfFemales]]*1000 -> 0 | L2: 1314323 | M2: 30.4 | N2: 0 | O2: 0 | P2: 0.08 | Q2: 8269 | R2: 0.08 | S2: 8269 | T2: 0.2 | U2: =Table_viewCountriesTransactions[[#This Row],[NoOfInjuresPerYear]]/100000 -> 0.10458 | V2: 10458 | W2: 0.2 | X2: 0 | Y2: Yes | Z2: Yes | AA2: Yes | AB2: Others | AC2: Yes | AD2: 18 | AE2: Yes | AF2: Events & Seminars | AG2: Yes | AH2: Yes | AI2: Yes | AJ2: 0 | AK2: 2488465 | AL2: 189.3 | AM2: 0.189 | AN2: 3749760 | AO2: 570420 | AP2: 86.8 | AQ2: 13.2 | AR2: 0 | AS2: =Table_viewCountriesTransactions[[#This Row],[AvgAccidentsPerYear]]/Table_viewCountriesTransactions[[#This Row],[NoOfVehicles]] -> 0.006291451949 | AT2: =Table_viewCountriesTransactions[[#This Row],[NoOfInjuresPerYear]]/Table_viewCountriesTransactions[[#This Row],[NoOfVehicles]] -> 0.007956948178
A3: الجمهورية التونسية | B3: 9779000 | C3: 162155 | D3: 4918837 | E3: 4860163 | F3: 50.3 | G3: 49.7 | H3: 0 | I3: =Table_viewCountriesTransactions[[#This Row],[DriversMalePercentage]]/Table_viewCountriesTransactions[[#This Row],[NoOfMales]]*1000 -> 0 | J3: 0 | K3: =Table_viewCountriesTransactions[[#This Row],[DriversFemalePercentage]]/Table_viewCountriesTransactions[[#This Row],[NoOfFemales]]*1000 -> 0 | L3: 0 | M3: 0 | N3: 0 | O3: 0 | P3: 0.11 | Q3: 11544 | R3: 0.12 | S3: 11544 | T3: 0.1 | U3: =Table_viewCountriesTransactions[[#This Row],[NoOfInjuresPerYear]]/100000 -> 0.15698 | V3: 15698 | W3: 0.2 | X3: 0 | Y3: No | Z3: Yes | AA3: Yes | AB3: Others | AC3: Yes | AD3: 18 | AE3: Yes | AF3: Events & Seminars | AG3: Yes | AH3: Yes | AI3: No | AJ3: 0 | AK3: 130212 | AL3: 130212 | AM3: 0.13 | AN3: 7588504 | AO3: 2190496 | AP3: 77.6 | AQ3: 22.4 | AR3: 0 | AS3: 0 | AT3: =Table_viewCountriesTransactions[[#This Row],[NoOfInjuresPerYear]]/Table_viewCountriesTransactions[[#This Row],[NoOfVehicles]] -> 
A4: الجمهورية العربية السورية | B4: 20479142 | C4: 185000 | D4: 10288944 | E4: 10190198 | F4: 50.2 | G4: 49.8 | H4: 0 | I4: =Table_viewCountriesTransactions[[#This Row],[DriversMalePercentage]]/Table_viewCountriesTransactions[[#This Row],[NoOfMales]]*1000 -> 0 | J4: 0 | K4: =Table_viewCountriesTransactions[[#This Row],[DriversFemalePercentage]]/Table_viewCountriesTransactions[[#This Row],[NoOfFemales]]*1000 -> 0 | L4: 956099 | M4: 4.7 | N4: 0 | O4: 0 | P4: 0.16 | Q4: 16985 | R4: 0.16 | S4: 16985 | T4: 0.1 | U4: =Table_viewCountriesTransactions[[#This Row],[NoOfInjuresPerYear]]/100000 -> 0.10661 | V4: 10661 | W4: 0.1 | X4: 0 | Y4: No | Z4: Yes | AA4: No | AB4: Others | AC4: Yes | AD4: 18 | AE4: Yes | AF4: Events & Seminars | AG4: No | AH4: Yes | AI4: Yes | AJ4: 0 | AK4: 0 | AL4: 0 | AM4: =Table_viewCountriesTransactions[[#This Row],[Total Fines To No Of Vehicles]]/100 -> 0 | AN4: 0 | AO4: 0 | AP4: 0 | AQ4: 0 | AR4: 0 | AS4: =Table_viewCountriesTransactions[[#This Row],[AvgAccidentsPerYear]]/Table_viewCountriesTransactions[[#This Row],[NoOfVehicles]] -> 0.01776489673 | AT4: =Table_viewCountriesTransactions[[#This Row],[NoOfInjuresPerYear]]/Table_viewCountriesTransactions[[#This Row],[NoOfVehicles]] -> 0.01115051893
A5: الجمهورية اللبنانية | B5: 4000000 | C5: 10452 | D5: 0 | E5: 0 | F5: 0 | G5: 0 | H5: 0 | I5: 0 | J5: 0 | K5: 0 | L5: 1081477 | M5: 27 | N5: 6520 | O5: 62.4 | P5: =Table_viewCountriesTransactions[[#This Row],[AvgAccidentsPerYear]]/1000 -> 0 | Q5: 0 | R5: 0 | S5: 0 | T5: 0 | U5: =Table_viewCountriesTransactions[[#This Row],[NoOfInjuresPerYear]]/100000 -> 0 | V5: 0 | W5: 0 | X5: 0 | Y5: Yes | Z5: Yes | AA5: Yes | AB5: Every 6 Months | AC5: Yes | AD5: 0 | AE5: No | AF5: None | AG5: No | AH5: Yes | AI5: No | AJ5: 0 | AK5: 0 | AL5: 0 | AM5: =Table_viewCountriesTransactions[[#This Row],[Total Fines To No Of Vehicles]]/100 -> 0 | AN5: 0 | AO5: 0 | AP5: 0 | AQ5: 0 | AR5: 0 | AS5: =Table_viewCountriesTransactions[[#This Row],[AvgAccidentsPerYear]]/Table_viewCountriesTransactions[[#This Row],[NoOfVehicles]] -> 0 | AT5: =Table_viewCountriesTransactions[[#This Row],[NoOfInjuresPerYear]]/Table_viewCountriesTransactions[[#This Row],[NoOfVehicles]] -> 0
A6: الجمهورية اليمنية | B6: 19721643 | C6: 555000 | D6: 10016137 | E6: 9705506 | F6: 50.8 | G6: 49.2 | H6: 98 | I6: =Table_viewCountriesTransactions[[#This Row],[DriversMalePercentage]]/Table_viewCountriesTransactions[[#This Row],[NoOfMales]]*1000 -> 0.009784211218 | J6: 2 | K6: =Table_viewCountriesTransactions[[#This Row],[DriversFemalePercentage]]/Table_viewCountriesTransactions[[#This Row],[NoOfFemales]]*1000 -> 0.0002060685965 | L6: 608339 | M6: 3.1 | N6: 24061 | O6: 4.3 | P6: 0.12 | Q6: 12343 | R6: 0.05 | S6: 51.3 | T6: 0.1 | U6: =Table_viewCountriesTransactions[[#This Row],[NoOfInjuresPerYear]]/100000 -> 0.14292 | V6: 14292 | W6: 0.1 | X6: 2459169155 | Y6: Yes | Z6: Yes | AA6: Yes | AB6: Yearly | AC6: No | AD6: 18 | AE6: Yes | AF6: Events & Seminars | AG6: No | AH6: Yes | AI6: No | AJ6: 0 | AK6: 572463 | AL6: 94.1 | AM6: =Table_viewCountriesTransactions[[#This Row],[Total Fines To No Of Vehicles]]/100 -> 0.941 | AN6: 53 | AO6: 47 | AP6: 0 | AQ6: 0 | AR6: 0 | AS6: =Table_viewCountriesTransactions[[#This Row],[AvgAccidentsPerYear]]/Table_viewCountriesTransactions[[#This Row],[NoOfVehicles]] -> 0.02028967401 | AT6: =Table_viewCountriesTransactions[[#This Row],[NoOfInjuresPerYear]]/Table_viewCountriesTransactions[[#This Row],[NoOfVehicles]] -> 0.02349347979
A7: المملكة الأردنية الهاشمية | B7: 4600000 | C7: 89342 | D7: 2401200 | E7: 2198800 | F7: 52.2 | G7: 47.8 | H7: 0 | I7: =Table_viewCountriesTransactions[[#This Row],[DriversMalePercentage]]/Table_viewCountriesTransactions[[#This Row],[NoOfMales]]*1000 -> 0 | J7: 0 | K7: =Table_viewCountriesTransactions[[#This Row],[DriversFemalePercentage]]/Table_viewCountriesTransactions[[#This Row],[NoOfFemales]]*1000 -> 0 | L7: 362811 | M7: 7.9 | N7: 7558 | O7: 8.5 | P7: 0.39 | Q7: 39005 | R7: 0.51 | S7: 516.1 | T7: 0.8 | U7: =Table_viewCountriesTransactions[[#This Row],[NoOfInjuresPerYear]]/100000 -> 0.16259 | V7: 16259 | W7: 0.4 | X7: 0 | Y7: Yes | Z7: Yes | AA7: Yes | AB7: Every 6 Months | AC7: Yes | AD7: 18 | AE7: Yes | AF7: Events & Seminars | AG7: Yes | AH7: Yes | AI7: Yes | AJ7: 0 | AK7: 1023609 | AL7: 282.1 | AM7: 0.028 | AN7: 3919200 | AO7: 680800 | AP7: 85.2 | AQ7: 14.8 | AR7: 0 | AS7: =Table_viewCountriesTransactions[[#This Row],[AvgAccidentsPerYear]]/Table_viewCountriesTransactions[[#This Row],[NoOfVehicles]] -> 0.1075077658 | AT7: =Table_viewCountriesTransactions[[#This Row],[NoOfInjuresPerYear]]/Table_viewCountriesTransactions[[#This Row],[NoOfVehicles]] -> 0.0448139665
A8: المملكة العربية السعودية | B8: 22673538 | C8: 2253300 | D8: 12557260 | E8: 10116278 | F8: 55.4 | G8: 44.6 | H8: 100 | I8: =Table_viewCountriesTransactions[[#This Row],[DriversMalePercentage]]/Table_viewCountriesTransactions[[#This Row],[NoOfMales]]*1000 -> 0.007963520704 | J8: 0 | K8: =Table_viewCountriesTransactions[[#This Row],[DriversFemalePercentage]]/Table_viewCountriesTransactions[[#This Row],[NoOfFemales]]*1000 -> 0 | L8: 439588 | M8: 1.9 | N8: 51000 | O8: 2.3 | P8: 0.29 | Q8: 293281 | R8: 0.05 | S8: 575.1 | T8: 0.13 | U8: =Table_viewCountriesTransactions[[#This Row],[NoOfInjuresPerYear]]/100000 -> 0.34811 | V8: 34811 | W8: 0.2 | X8: 0 | Y8: Yes | Z8: Yes | AA8: Yes | AB8: Others | AC8: Yes | AD8: 18 | AE8: Yes | AF8: Events & Seminars | AG8: Yes | AH8: Yes | AI8: Yes | AJ8: 0 | AK8: 10077797 | AL8: 2292.6 | AM8: 0.023 | AN8: 20044364 | AO8: 2629174 | AP8: 88.4 | AQ8: 11.6 | AR8: 0 | AS8: =Table_viewCountriesTransactions[[#This Row],[AvgAccidentsPerYear]]/Table_viewCountriesTransactions[[#This Row],[NoOfVehicles]] -> 0.6671724433 | AT8: =Table_viewCountriesTransactions[[#This Row],[NoOfInjuresPerYear]]/Table_viewCountriesTransactions[[#This Row],[NoOfVehicles]] -> 0.07919005978
A9: المملكة المغربية | B9: 29891708 | C9: 710850 | D9: 14972000 | E9: 15116000 | F9: 50.1 | G9: 50.6 | H9: 0 | I9: =Table_viewCountriesTransactions[[#This Row],[DriversMalePercentage]]/Table_viewCountriesTransactions[[#This Row],[NoOfMales]]*1000 -> 0 | J9: 0 | K9: =Table_viewCountriesTransactions[[#This Row],[DriversFemalePercentage]]/Table_viewCountriesTransactions[[#This Row],[NoOfFemales]]*1000 -> 0 | L9: 1950802 | M9: 6.5 | N9: 0 | O9: 0 | P9: 0.51 | Q9: 51687 | R9: 0.51 | S9: 51687 | T9: 0.2 | U9: =Table_viewCountriesTransactions[[#This Row],[NoOfInjuresPerYear]]/100000 -> 0.84044 | V9: 84044 | W9: 0.3 | X9: 11000000000 | Y9: Other | Z9: Yes | AA9: Yes | AB9: Others | AC9: Yes | AD9: 18 | AE9: Yes | AF9: Events & Seminars | AG9: No | AH9: Yes | AI9: Yes | AJ9: 0 | AK9: 0 | AL9: 0 | AM9: =Table_viewCountriesTransactions[[#This Row],[Total Fines To No Of Vehicles]]/100 -> 0 | AN9: 15555496 | AO9: 14532504 | AP9: 52 | AQ9: 48.6 | AR9: 0 | AS9: =Table_viewCountriesTransactions[[#This Row],[AvgAccidentsPerYear]]/Table_viewCountriesTransactions[[#This Row],[NoOfVehicles]] -> 0.02649525682 | AT9: =Table_viewCountriesTransactions[[#This Row],[NoOfInjuresPerYear]]/Table_viewCountriesTransactions[[#This Row],[NoOfVehicles]] -> 0.04308176842
A10: جمهورية مصر العربية | B10: 69997318 | C10: 1010500 | D10: 35817628 | E10: 34179690 | F10: 51.2 | G10: 48.8 | H10: 0 | I10: =Table_viewCountriesTransactions[[#This Row],[DriversMalePercentage]]/Table_viewCountriesTransactions[[#This Row],[NoOfMales]]*1000 -> 0 | J10: 0 | K10: =Table_viewCountriesTransactions[[#This Row],[DriversFemalePercentage]]/Table_viewCountriesTransactions[[#This Row],[NoOfFemales]]*1000 -> 0 | L10: 3497167 | M10: 5 | N10: 45500 | O10: 4.5 | P10: 0.26 | Q10: 26109 | R10: 0.05 | S10: 57.4 | T10: 0 | U10: =Table_viewCountriesTransactions[[#This Row],[NoOfInjuresPerYear]]/100000 -> 0.36 | V10: 36000 | W10: 0.1 | X10: 0 | Y10: Yes | Z10: Yes | AA10: Yes | AB10: Yearly | AC10: Yes | AD10: 18 | AE10: Yes | AF10: Events & Seminars | AG10: No | AH10: Yes | AI10: Yes | AJ10: 24153 | AK10: 16359790 | AL10: 467.8 | AM10: 0.047 | AN10: 48805058 | AO10: 21191572 | AP10: 69.7 | AQ10: 30.3 | AR10: 0.7 | AS10: =Table_viewCountriesTransactions[[#This Row],[AvgAccidentsPerYear]]/Table_viewCountriesTransactions[[#This Row],[NoOfVehicles]] -> 0.007465757283 | AT10: =Table_viewCountriesTransactions[[#This Row],[NoOfInjuresPerYear]]/Table_viewCountriesTransactions[[#This Row],[NoOfVehicles]] -> 0.01029404658
A11: دولة قطر | B11: 1015844 | C11: 12000 | D11: 724256 | E11: 291488 | F11: 71.3 | G11: 28.7 | H11: 297160 | I11: =Table_viewCountriesTransactions[[#This Row],[DriversMalePercentage]]/Table_viewCountriesTransactions[[#This Row],[NoOfMales]] -> 0.4102969116 | J11: 31283 | K11: =Table_viewCountriesTransactions[[#This Row],[DriversFemalePercentage]]/Table_viewCountriesTransactions[[#This Row],[NoOfFemales]] -> 0.1073217422 | L11: 393751 | M11: 38.8 | N11: 8929 | O11: 74.4 | P11: 0.023 | Q11: 2362 | R11: 0.02 | S11: 26.5 | T11: 0.2 | U11: =Table_viewCountriesTransactions[[#This Row],[NoOfInjuresPerYear]]/100000 -> 0.01371 | V11: 1371 | W11: 0.1 | X11: 0 | Y11: Yes | Z11: Sometimes | AA11: Yes | AB11: Others | AC11: Yes | AD11: 18 | AE11: Yes | AF11: Events & Seminars | AG11: No | AH11: Yes | AI11: No | AJ11: 0 | AK11: 0 | AL11: 0 | AM11: =Table_viewCountriesTransactions[[#This Row],[Total Fines To No Of Vehicles]]/100 -> 0 | AN11: 610113 | AO11: 406209 | AP11: 60.1 | AQ11: 40 | AR11: 0 | AS11: =Table_viewCountriesTransactions[[#This Row],[AvgAccidentsPerYear]]/Table_viewCountriesTransactions[[#This Row],[NoOfVehicles]] -> 0.005998714924 | AT11: =Table_viewCountriesTransactions[[#This Row],[NoOfInjuresPerYear]]/Table_viewCountriesTransactions[[#This Row],[NoOfVehicles]] -> 0.003481895919
A12: سلطنة عمان | B12: 2340815 | C12: 309500 | D12: 1313239 | E12: 1027576 | F12: 56.1 | G12: 43.9 | H12: 506525 | I12: =Table_viewCountriesTransactions[[#This Row],[DriversMalePercentage]]/Table_viewCountriesTransactions[[#This Row],[NoOfMales]] -> 0.3857066383 | J12: 72283 | K12: =Table_viewCountriesTransactions[[#This Row],[DriversFemalePercentage]]/Table_viewCountriesTransactions[[#This Row],[NoOfFemales]] -> 0.07034321549 | L12: 468412 | M12: 20 | N12: 37227 | O12: 12 | P12: 0.094 | Q12: 9460 | R12: 0.02 | S12: 25.4 | T12: 0.4 | U12: =Table_viewCountriesTransactions[[#This Row],[NoOfInjuresPerYear]]/100000 -> 0.06636 | V12: 6636 | W12: 0.3 | X12: 0 | Y12: No | Z12: No | AA12: No | AB12: Others | AC12: No | AD12: 0 | AE12: Yes | AF12: Events & Seminars | AG12: Yes | AH12: No | AI12: Yes | AJ12: 41168 | AK12: 452267 | AL12: 96.6 | AM12: =Table_viewCountriesTransactions[[#This Row],[Total Fines To No Of Vehicles]]/100 -> 0.966 | AN12: 0 | AO12: 0 | AP12: 0 | AQ12: 0 | AR12: 8.8 | AS12: =Table_viewCountriesTransactions[[#This Row],[AvgAccidentsPerYear]]/Table_viewCountriesTransactions[[#This Row],[NoOfVehicles]] -> 0.02019589592 | AT12: =Table_viewCountriesTransactions[[#This Row],[NoOfInjuresPerYear]]/Table_viewCountriesTransactions[[#This Row],[NoOfVehicles]] -> 0.01416701536
A13: فلسطين | B13: 3267565 | C13: 0 | D13: 1322264 | E13: 1279405 | F13: 40.5 | G13: 39.2 | H13: 75 | I13: =Table_viewCountriesTransactions[[#This Row],[DriversMalePercentage]]/Table_viewCountriesTransactions[[#This Row],[NoOfMales]]*1000 -> 0.05672089689 | J13: 25 | K13: =Table_viewCountriesTransactions[[#This Row],[DriversFemalePercentage]]/Table_viewCountriesTransactions[[#This Row],[NoOfFemales]]*1000 -> 0.0195403332 | L13: 166608 | M13: 5.1 | N13: 2687 | O13: 2687 | P13: =Table_viewCountriesTransactions[[#This Row],[AvgAccidentsPerYear]]/1000 -> 0 | Q13: 0 | R13: 0 | S13: 0 | T13: 0 | U13: =Table_viewCountriesTransactions[[#This Row],[NoOfInjuresPerYear]]/100000 -> 0 | V13: 0 | W13: 0 | X13: 0 | Y13: Yes | Z13: No | AA13: Yes | AB13: Yearly | AC13: No | AD13: 18 | AE13: Yes | AF13: Events & Seminars | AG13: No | AH13: Yes | AI13: Yes | AJ13: 33567 | AK13: 0 | AL13: 0 | AM13: =Table_viewCountriesTransactions[[#This Row],[Total Fines To No Of Vehicles]]/100 -> 0 | AN13: 182556 | AO13: 65404 | AP13: 5.6 | AQ13: 2 | AR13: 20.1 | AS13: =Table_viewCountriesTransactions[[#This Row],[AvgAccidentsPerYear]]/Table_viewCountriesTransactions[[#This Row],[NoOfVehicles]] -> 0 | AT13: =Table_viewCountriesTransactions[[#This Row],[NoOfInjuresPerYear]]/Table_viewCountriesTransactions[[#This Row],[NoOfVehicles]] -> 0
A14: مملكة البحرين | B14: 689416 | C14: 665 | D14: 396277 | E14: 293139 | F14: 57.5 | G14: 42.5 | H14: 0 | I14: =Table_viewCountriesTransactions[[#This Row],[DriversMalePercentage]]/Table_viewCountriesTransactions[[#This Row],[NoOfMales]]*1000 -> 0 | J14: 0 | K14: =Table_viewCountriesTransactions[[#This Row],[DriversFemalePercentage]]/Table_viewCountriesTransactions[[#This Row],[NoOfFemales]]*1000 -> 0 | L14: 273230 | M14: 39.6 | N14: 2768 | O14: 416.2 | P14: 0.459 | Q14: 45996 | R14: 0.16 | S14: 1661.7 | T14: 0.67 | U14: =Table_viewCountriesTransactions[[#This Row],[NoOfInjuresPerYear]]/100000 -> 0.03523 | V14: 3523 | W14: 0.5 | X14: 0 | Y14: Yes | Z14: Yes | AA14: Yes | AB14: Yearly | AC14: Yes | AD14: 18 | AE14: Yes | AF14: Events & Seminars | AG14: No | AH14: Yes | AI14: Yes | AJ14: 70062 | AK14: 114920 | AL14: 42.1 | AM14: =Table_viewCountriesTransactions[[#This Row],[Total Fines To No Of Vehicles]]/100 -> 0.421 | AN14: 647112 | AO14: 42304 | AP14: 93.9 | AQ14: 6.1 | AR14: 25.6 | AS14: =Table_viewCountriesTransactions[[#This Row],[AvgAccidentsPerYear]]/Table_viewCountriesTransactions[[#This Row],[NoOfVehicles]] -> 0.1683416902 | AT14: =Table_viewCountriesTransactions[[#This Row],[NoOfInjuresPerYear]]/Table_viewCountriesTransactions[[#This Row],[NoOfVehicles]] -> 0.01289389891

Sheet Sheet2 (hidden)
A1: CountryName | B1: AccidentCause | C1: Quantity
A2: الامارات العربية المتحدة
A3: الجمهورية التونسية | B3: عوامل بشرية | C3: 36
A4: الجمهورية التونسية | B4: عوامل تتعلق بالمركبة | C4: 4
A5: الجمهورية التونسية | B5: عوامل تتعلق بالطرق | C5: 1
A6: الجمهورية التونسية | B6: عوامل تتعلق بالطرق مع أي عوامل أخرى | C6: 24
A7: الجمهورية العربية السورية
A8: الجمهورية اللبنانية
A9: الجمهورية اليمنية | B9: عوامل بشرية | C9: 30
A10: الجمهورية اليمنية | B10: عوامل تتعلق بالمركبة | C10: 30
A11: الجمهورية اليمنية | B11: عوامل تتعلق بالطرق | C11: 20
A12: الجمهورية اليمنية | B12: عوامل بالبيئة | C12: 10
A13: الجمهورية اليمنية | B13: عوامل تتعلق بالطرق مع أي عوامل أخرى | C13: 10
A14: المملكة الأردنية الهاشمية
A15: المملكة العربية السعودية
A16: المملكة المغربية | B16: عوامل بشرية | C16: 86
A17: المملكة المغربية | B17: عوامل تتعلق بالمركبة | C17: 9
A18: المملكة المغربية | B18: عوامل تتعلق بالطرق | C18: 1
A19: المملكة المغربية | B19: عوامل بالبيئة | C19: 4
A20: جمهورية مصر العربية
A21: دولة قطر | B21: عوامل بشرية | C21: 98
A22: دولة قطر | B22: عوامل تتعلق بالمركبة | C22: 1
A23: دولة قطر | B23: عوامل تتعلق بالطرق | C23: 1
A24: سلطنة عمان
A25: فلسطين | B25: عوامل بشرية | C25: 10
A26: فلسطين | B26: عوامل تتعلق بالمركبة | C26: 5
A27: مملكة البحرين | B27: عوامل بشرية | C27: 96
A28: مملكة البحرين | B28: عوامل تتعلق بالمركبة | C28: 1
A29: مملكة البحرين | B29: عوامل تتعلق بالطرق | C29: 1
A30: مملكة البحرين | B30: عوامل بالبيئة | C30: 0
A31: مملكة البحرين | B31: عوامل تتعلق بالطرق مع أي عوامل أخرى | C31: 2

Sheet Sheet3 (hidden)
A1: CountryName | B1: CategoryName | C1: Quantity
A2: الامارات العربية المتحدة
A3: الجمهورية التونسية
A4: الجمهورية العربية السورية | B4: ركوب صغيرة | C4: 433585
A5: الجمهورية العربية السورية | B5: ركوب متوسطة | C5: 44165
A6: الجمهورية العربية السورية | B6: ركوب كبيرة - باص | C6: 5305
A7: الجمهورية العربية السورية | B7: شاحنة | C7: 240987
A8: الجمهورية العربية السورية | B8: نقل مشترك | C8: 7106
A9: الجمهورية العربية السورية | B9: مركبة زراعية | C9: 127977
A10: الجمهورية العربية السورية | B10: أخرى | C10: 121233
A11: الجمهورية اللبنانية | B11: ركوب صغيرة | C11: 931475
A12: الجمهورية اللبنانية | B12: ركوب متوسطة | C12: 3995
A13: الجمهورية اللبنانية | B13: ركوب كبيرة - باص | C13: 8568
A14: الجمهورية اللبنانية | B14: شاحنة | C14: 98531
A15: الجمهورية اللبنانية | B15: نقل مشترك | C15: 201
A16: الجمهورية اللبنانية | B16: قاطرة مقطورة | C16: 739
A17: الجمهورية اللبنانية | B17: أخرى | C17: 37968
A18: الجمهورية اليمنية | B18: ركوب صغيرة | C18: 323685
A19: الجمهورية اليمنية | B19: نقل مشترك | C19: 271936
A20: الجمهورية اليمنية | B20: أخرى | C20: 12718
A21: المملكة الأردنية الهاشمية
A22: المملكة العربية السعودية | B22: ركوب صغيرة | C22: 308567
A23: المملكة العربية السعودية | B23: ركوب متوسطة | C23: 13763
A24: المملكة العربية السعودية | B24: ركوب كبيرة - باص | C24: 109242
A25: المملكة العربية السعودية | B25: شاحنة | C25: 7970
A26: المملكة العربية السعودية | B26: نقل مشترك | C26: 8394
A27: المملكة العربية السعودية | B27: مركبة زراعية | C27: 2415
A28: المملكة العربية السعودية | B28: أخرى | C28: 3000
A29: المملكة المغربية
A30: جمهورية مصر العربية | B30: ركوب صغيرة | C30: 1644807
A31: جمهورية مصر العربية | B31: ركوب متوسطة | C31: 133106
A32: جمهورية مصر العربية | B32: ركوب كبيرة - باص | C32: 68453
A33: جمهورية مصر العربية | B33: شاحنة | C33: 646391
A34: جمهورية مصر العربية | B34: نقل مشترك | C34: 315293
A35: جمهورية مصر العربية | B35: قاطرة مقطورة | C35: 58016
A36: جمهورية مصر العربية | B36: مركبة زراعية | C36: 23164
A37: جمهورية مصر العربية | B37: أخرى | C37: 207937
A38: دولة قطر | B38: ركوب صغيرة | C38: 266209
A39: دولة قطر | B39: قاطرة مقطورة | C39: 6664
A40: دولة قطر | B40: مركبة زراعية | C40: 10841
A41: دولة قطر | B41: أخرى | C41: 2282
A42: سلطنة عمان
A43: فلسطين | B43: ركوب صغيرة | C43: 87330
A44: فلسطين | B44: ركوب متوسطة | C44: 6711
A45: فلسطين | B45: ركوب كبيرة - باص | C45: 745
A46: فلسطين | B46: شاحنة | C46: 14637
A47: فلسطين | B47: نقل مشترك | C47: 24293
A48: فلسطين | B48: قاطرة مقطورة | C48: 757
A49: فلسطين | B49: مركبة زراعية | C49: 5944
A50: فلسطين | B50: أخرى | C50: 2063
A51: مملكة البحرين | B51: ركوب صغيرة | C51: 226221
A52: مملكة البحرين | B52: ركوب كبيرة - باص | C52: 6450
A53: مملكة البحرين | B53: شاحنة | C53: 22950
A54: مملكة البحرين | B54: نقل مشترك | C54: 11466
A55: مملكة البحرين | B55: قاطرة مقطورة | C55: 1180
A56: مملكة البحرين | B56: مركبة زراعية | C56: 17
A57: مملكة البحرين | B57: أخرى | C57: 4946

Sheet Sheet4 (hidden)
A1: CountryName | B1: LicenseType | C1: Type of Vehicles to Vehicles involved
A2: الامارات العربية المتحدة
A3: الجمهورية التونسية
A4: الجمهورية العربية السورية | B4: نقل عام | C4: 35439
A5: الجمهورية العربية السورية | B5: نقل خاص | C5: 108423
A6: الجمهورية العربية السورية | B6: سياحي | C6: 233585
A7: الجمهورية العربية السورية | B7: نقل بضائع | C7: 240987
A8: الجمهورية العربية السورية | B8: حكومي | C8: 62482
A9: الجمهورية اللبنانية | B9: نقل عام | C9: 39169
A10: الجمهورية اللبنانية | B10: نقل خاص | C10: 6671
A11: الجمهورية اللبنانية | B11: سياحي | C11: 898399
A12: الجمهورية اللبنانية | B12: نقل بضائع | C12: 99270
A13: الجمهورية اللبنانية | B13: أخرى | C13: 37968
A14: الجمهورية اليمنية | B14: نقل عام | C14: 17263
A15: الجمهورية اليمنية | B15: نقل خاص | C15: 94416
A16: الجمهورية اليمنية | B16: نقل بضائع | C16: 39429
A17: الجمهورية اليمنية | B17: حكومي | C17: 2781
A18: الجمهورية اليمنية | B18: أخرى | C18: 1901
A19: المملكة الأردنية الهاشمية
A20: المملكة العربية السعودية | B20: نقل عام | C20: 13763
A21: المملكة العربية السعودية | B21: نقل خاص | C21: 95479
A22: المملكة المغربية
A23: جمهورية مصر العربية | B23: نقل عام | C23: 58633
A24: جمهورية مصر العربية | B24: نقل خاص | C24: 1985018
A25: جمهورية مصر العربية | B25: سياحي | C25: 9133
A26: جمهورية مصر العربية | B26: نقل بضائع | C26: 704407
A27: جمهورية مصر العربية | B27: حكومي | C27: 88773
A28: جمهورية مصر العربية | B28: أخرى | C28: 651203
A29: دولة قطر | B29: نقل عام | C29: 2017
A30: دولة قطر | B30: نقل خاص | C30: 100125
A31: دولة قطر | B31: حكومي | C31: 2088
A32: سلطنة عمان
A33: فلسطين
A34: مملكة البحرين | B34: نقل عام | C34: 2355
A35: مملكة البحرين | B35: نقل خاص | C35: 17139
A36: مملكة البحرين | B36: نقل بضائع | C36: 22325
A37: مملكة البحرين | B37: حكومي | C37: 1284
A38: مملكة البحرين | B38: أخرى | C38: 230127

Sheet Sheet5 (hidden)
A1: CountryName | B1: AgePeriods | C1: TotalAccidents | D1: TotalInjuries | E1: TotalDeaths | F1: InjuriesPerAccidents | G1: DeathsPerAccidents
A2: الامارات العربية المتحدة
A3: الجمهورية التونسية | B3: 10 - 18 سنة | C3: 1740 | D3: 1579 | E3: 161 | F3: 90.747 | G3: 9.253
A4: الجمهورية التونسية | B4: أطفال دون سن 10 سنوات | C4: 1687 | D4: 1477 | E4: 210 | F4: 87.552 | G4: 12.448
A5: الجمهورية التونسية | B5: من 18 - 30 سنة | C5: 9133 | D5: 8285 | E5: 848 | F5: 90.715 | G5: 9.285
A6: الجمهورية التونسية | B6: من 30 - 50 سنة | C6: 4244 | D6: 3885 | E6: 359 | F6: 91.541 | G6: 8.459
A7: الجمهورية التونسية | B7: من 50 - فما فوق | C7: 550 | D7: 472 | E7: 78 | F7: 85.818 | G7: 14.182
A8: الجمهورية العربية السورية | B8: 10 - 18 سنة | C8: 0 | D8: 58 | E8: 76 | F8: 58 | G8: 76
A9: الجمهورية العربية السورية | B9: أطفال دون سن 10 سنوات | C9: 0 | D9: 68 | E9: 47 | F9: 68 | G9: 47
A10: الجمهورية العربية السورية | B10: من 18 - 30 سنة | C10: 0 | D10: 140 | E10: 81 | F10: 140 | G10: 81
A11: الجمهورية اللبنانية
A12: الجمهورية اليمنية | B12: من 30 - 50 سنة | C12: 0 | D12: 14292 | E12: 2204 | F12: 14292 | G12: 2204
A13: المملكة الأردنية الهاشمية | B13: 10 - 18 سنة | C13: 0 | D13: 2897 | E13: 67 | F13: 2897 | G13: 67
A14: المملكة الأردنية الهاشمية | B14: أطفال دون سن 10 سنوات | C14: 0 | D14: 3477 | E14: 136 | F14: 3477 | G14: 136
A15: المملكة الأردنية الهاشمية | B15: من 18 - 30 سنة | C15: 0 | D15: 5061 | E15: 159 | F15: 5061 | G15: 159
A16: المملكة الأردنية الهاشمية | B16: من 30 - 50 سنة | C16: 0 | D16: 3515 | E16: 120 | F16: 3515 | G16: 120
A17: المملكة الأردنية الهاشمية | B17: من 50 - فما فوق | C17: 0 | D17: 1304 | E17: 95 | F17: 1304 | G17: 95
A18: المملكة العربية السعودية | B18: 10 - 18 سنة | C18: 8747 | D18: 7509 | E18: 1238 | F18: 85.847 | G18: 14.153
A19: المملكة العربية السعودية | B19: من 18 - 30 سنة | C19: 25835 | D19: 22600 | E19: 3235 | F19: 87.478 | G19: 12.522
A20: المملكة العربية السعودية | B20: من 30 - 50 سنة | C20: 6208 | D20: 5986 | E20: 222 | F20: 96.424 | G20: 3.576
A21: المملكة العربية السعودية | B21: من 50 - فما فوق | C21: 5405 | D21: 4382 | E21: 1023 | F21: 81.073 | G21: 18.927
A22: المملكة المغربية | B22: 10 - 18 سنة | C22: 4362 | D22: 4180 | E22: 182 | F22: 95.828 | G22: 4.172
A23: المملكة المغربية | B23: أطفال دون سن 10 سنوات | C23: 6143 | D23: 5842 | E23: 301 | F23: 95.1 | G23: 4.9
A24: المملكة المغربية | B24: من 18 - 30 سنة | C24: 38706 | D24: 37300 | E24: 1397 | F24: 96.367 | G24: 3.609
A25: المملكة المغربية | B25: من 30 - 50 سنة | C25: 24196 | D25: 23044 | E25: 1152 | F25: 95.239 | G25: 4.761
A26: المملكة المغربية | B26: من 50 - فما فوق | C26: 8758 | D26: 8052 | E26: 706 | F26: 91.939 | G26: 8.061
A27: جمهورية مصر العربية | B27: 10 - 18 سنة | C27: 0 | D27: 0 | E27: 674 | F27: 0 | G27: 674
A28: جمهورية مصر العربية | B28: أطفال دون سن 10 سنوات | C28: 0 | D28: 0 | E28: 330 | F28: 0 | G28: 330
A29: جمهورية مصر العربية | B29: من 18 - 30 سنة | C29: 0 | D29: 0 | E29: 808 | F29: 0 | G29: 808
A30: جمهورية مصر العربية | B30: من 30 - 50 سنة | C30: 0 | D30: 0 | E30: 1445 | F30: 0 | G30: 1445
A31: جمهورية مصر العربية | B31: من 50 - فما فوق | C31: 0 | D31: 0 | E31: 1293 | F31: 0 | G31: 1293
A32: دولة قطر | B32: 10 - 18 سنة | C32: 517 | D32: 485 | E32: 32 | F32: 93.81 | G32: 6.19
A33: دولة قطر | B33: أطفال دون سن 10 سنوات | C33: 19 | D33: 16 | E33: 3 | F33: 84.211 | G33: 15.789
A34: دولة قطر | B34: من 18 - 30 سنة | C34: 595 | D34: 508 | E34: 87 | F34: 85.378 | G34: 14.622
A35: دولة قطر | B35: من 30 - 50 سنة | C35: 374 | D35: 352 | E35: 22 | F35: 94.118 | G35: 5.882
A36: دولة قطر | B36: من 50 - فما فوق | C36: 30 | D36: 10 | E36: 20 | F36: 33.333 | G36: 66.667
A37: سلطنة عمان
A38: فلسطين | B38: 10 - 18 سنة | C38: 330 | D38: 240 | E38: 90 | F38: 72.727 | G38: 27.273
A39: فلسطين | B39: أطفال دون سن 10 سنوات | C39: 247 | D39: 170 | E39: 77 | F39: 68.826 | G39: 31.174
A40: فلسطين | B40: من 18 - 30 سنة | C40: 95 | D40: 60 | E40: 35 | F40: 63.158 | G40: 36.842
A41: فلسطين | B41: من 30 - 50 سنة | C41: 65 | D41: 35 | E41: 30 | F41: 53.846 | G41: 46.154
A42: فلسطين | B42: من 50 - فما فوق | C42: 75 | D42: 50 | E42: 25 | F42: 66.667 | G42: 33.333
A43: مملكة البحرين | B43: 10 - 18 سنة | C43: 441 | D43: 436 | E43: 5 | F43: 98.866 | G43: 1.134
A44: مملكة البحرين | B44: أطفال دون سن 10 سنوات | C44: 365 | D44: 358 | E44: 7 | F44: 98.082 | G44: 1.918
A45: مملكة البحرين | B45: من 18 - 30 سنة | C45: 1329 | D45: 1303 | E45: 26 | F45: 98.044 | G45: 1.956
A46: مملكة البحرين | B46: من 30 - 50 سنة | C46: 1142 | D46: 1114 | E46: 28 | F46: 97.548 | G46: 2.452
A47: مملكة البحرين | B47: من 50 - فما فوق | C47: 246 | D47: 235 | E47: 11 | F47: 95.528 | G47: 4.472

Sheet Sheet6 (hidden)
A1: TotalAccidents | B1: TotalInjuries | C1: TotalDeaths | D1: InjuriesPerAccidents | E1: DeathsPerAccidents | F1: CountryName | G1: Age Period & Gender
F2: الامارات العربية المتحدة
A3: 1431 | B3: 1289 | C3: 142 | D3: 90.077 | E3: 9.923 | F3: الجمهورية التونسية | G3: 10 - 18 سنة Male
A4: 309 | B4: 290 | C4: 19 | D4: 93.851 | E4: 6.149 | F4: الجمهورية التونسية | G4: 10 - 18 سنة Female
A5: 1234 | B5: 1075 | C5: 159 | D5: 87.115 | E5: 12.885 | F5: الجمهورية التونسية | G5: أطفال دون سن 10 سنوات Male
A6: 453 | B6: 402 | C6: 51 | D6: 88.742 | E6: 11.258 | F6: الجمهورية التونسية | G6: أطفال دون سن 10 سنوات Female
A7: 7767 | B7: 7006 | C7: 761 | D7: 90.202 | E7: 9.798 | F7: الجمهورية التونسية | G7: من 18 - 30 سنة Male
A8: 1366 | B8: 1279 | C8: 87 | D8: 93.631 | E8: 6.369 | F8: الجمهورية التونسية | G8: من 18 - 30 سنة Female
A9: 3591 | B9: 3295 | C9: 296 | D9: 91.757 | E9: 8.243 | F9: الجمهورية التونسية | G9: من 30 - 50 سنة Male
A10: 653 | B10: 590 | C10: 63 | D10: 90.352 | E10: 9.648 | F10: الجمهورية التونسية | G10: من 30 - 50 سنة Female
A11: 473 | B11: 406 | C11: 67 | D11: 85.835 | E11: 14.165 | F11: الجمهورية التونسية | G11: من 50 - فما فوق Male
A12: 77 | B12: 66 | C12: 11 | D12: 85.714 | E12: 14.286 | F12: الجمهورية التونسية | G12: من 50 - فما فوق Female
A13: 0 | B13: 24 | C13: 72 | D13: 24 | E13: 72 | F13: الجمهورية العربية السورية | G13: 10 - 18 سنة Male
A14: 0 | B14: 34 | C14: 4 | D14: 34 | E14: 4 | F14: الجمهورية العربية السورية | G14: 10 - 18 سنة Female
A15: 0 | B15: 43 | C15: 3 | D15: 43 | E15: 3 | F15: الجمهورية العربية السورية | G15: أطفال دون سن 10 سنوات Male
A16: 0 | B16: 25 | C16: 44 | D16: 25 | E16: 44 | F16: الجمهورية العربية السورية | G16: أطفال دون سن 10 سنوات Female
A17: 0 | B17: 94 | C17: 8 | D17: 94 | E17: 8 | F17: الجمهورية العربية السورية | G17: من 18 - 30 سنة Male
A18: 0 | B18: 46 | C18: 73 | D18: 46 | E18: 73 | F18: الجمهورية العربية السورية | G18: من 18 - 30 سنة Female
F19: الجمهورية اللبنانية
A20: 0 | B20: 12190 | C20: 1852 | D20: 12190 | E20: 1852 | F20: الجمهورية اليمنية | G20: من 30 - 50 سنة Male
A21: 0 | B21: 2102 | C21: 352 | D21: 2102 | E21: 352 | F21: الجمهورية اليمنية | G21: من 30 - 50 سنة Female
A22: 0 | B22: 2897 | C22: 67 | D22: 2897 | E22: 67 | F22: المملكة الأردنية الهاشمية | G22: 10 - 18 سنة Male
A23: 0 | B23: 3477 | C23: 136 | D23: 3477 | E23: 136 | F23: المملكة الأردنية الهاشمية | G23: أطفال دون سن 10 سنوات Male
A24: 0 | B24: 5061 | C24: 159 | D24: 5061 | E24: 159 | F24: المملكة الأردنية الهاشمية | G24: من 18 - 30 سنة Male
A25: 0 | B25: 3515 | C25: 120 | D25: 3515 | E25: 120 | F25: المملكة الأردنية الهاشمية | G25: من 30 - 50 سنة Male
A26: 0 | B26: 1304 | C26: 95 | D26: 1304 | E26: 95 | F26: المملكة الأردنية الهاشمية | G26: من 50 - فما فوق Male
A27: 7440 | B27: 6433 | C27: 1007 | D27: 86.465 | E27: 13.535 | F27: المملكة العربية السعودية | G27: 10 - 18 سنة Male
A28: 1307 | B28: 1076 | C28: 231 | D28: 82.326 | E28: 17.674 | F28: المملكة العربية السعودية | G28: 10 - 18 سنة Female
A29: 22131 | B29: 19484 | C29: 2647 | D29: 88.039 | E29: 11.961 | F29: المملكة العربية السعودية | G29: من 18 - 30 سنة Male
A30: 3704 | B30: 3116 | C30: 588 | D30: 84.125 | E30: 15.875 | F30: المملكة العربية السعودية | G30: من 18 - 30 سنة Female
A31: 5316 | B31: 5136 | C31: 180 | D31: 96.614 | E31: 3.386 | F31: المملكة العربية السعودية | G31: من 30 - 50 سنة Male
A32: 892 | B32: 850 | C32: 42 | D32: 95.291 | E32: 4.709 | F32: المملكة العربية السعودية | G32: من 30 - 50 سنة Female
A33: 4592 | B33: 3758 | C33: 834 | D33: 81.838 | E33: 18.162 | F33: المملكة العربية السعودية | G33: من 50 - فما فوق Male
A34: 813 | B34: 624 | C34: 189 | D34: 76.753 | E34: 23.247 | F34: المملكة العربية السعودية | G34: من 50 - فما فوق Female
A35: 3028 | B35: 2891 | C35: 137 | D35: 95.476 | E35: 4.524 | F35: المملكة المغربية | G35: 10 - 18 سنة Male
A36: 1334 | B36: 1289 | C36: 45 | D36: 96.627 | E36: 3.373 | F36: المملكة المغربية | G36: 10 - 18 سنة Female
A37: 3814 | B37: 3631 | C37: 183 | D37: 95.202 | E37: 4.798 | F37: المملكة المغربية | G37: أطفال دون سن 10 سنوات Male
A38: 2329 | B38: 2211 | C38: 118 | D38: 94.933 | E38: 5.067 | F38: المملكة المغربية | G38: أطفال دون سن 10 سنوات Female
A39: 31163 | B39: 29905 | C39: 1258 | D39: 95.963 | E39: 4.037 | F39: المملكة المغربية | G39: من 18 - 30 سنة Male
A40: 7543 | B40: 7395 | C40: 139 | D40: 98.038 | E40: 1.843 | F40: المملكة المغربية | G40: من 18 - 30 سنة Female
A41: 18934 | B41: 17938 | C41: 996 | D41: 94.74 | E41: 5.26 | F41: المملكة المغربية | G41: من 30 - 50 سنة Male
A42: 5262 | B42: 5106 | C42: 156 | D42: 97.035 | E42: 2.965 | F42: المملكة المغربية | G42: من 30 - 50 سنة Female
A43: 6449 | B43: 5904 | C43: 545 | D43: 91.549 | E43: 8.451 | F43: المملكة المغربية | G43: من 50 - فما فوق Male
A44: 2309 | B44: 2148 | C44: 161 | D44: 93.027 | E44: 6.973 | F44: المملكة المغربية | G44: من 50 - فما فوق Female
A45: 0 | B45: 0 | C45: 512 | D45: 0 | E45: 512 | F45: جمهورية مصر العربية | G45: 10 - 18 سنة Male
A46: 0 | B46: 0 | C46: 162 | D46: 0 | E46: 162 | F46: جمهورية مصر العربية | G46: 10 - 18 سنة Female
A47: 0 | B47: 0 | C47: 217 | D47: 0 | E47: 217 | F47: جمهورية مصر العربية | G47: أطفال دون سن 10 سنوات Male
A48: 0 | B48: 0 | C48: 113 | D48: 0 | E48: 113 | F48: جمهورية مصر العربية | G48: أطفال دون سن 10 سنوات Female
A49: 0 | B49: 0 | C49: 686 | D49: 0 | E49: 686 | F49: جمهورية مصر العربية | G49: من 18 - 30 سنة Male
A50: 0 | B50: 0 | C50: 122 | D50: 0 | E50: 122 | F50: جمهورية مصر العربية | G50: من 18 - 30 سنة Female
A51: 0 | B51: 0 | C51: 1242 | D51: 0 | E51: 1242 | F51: جمهورية مصر العربية | G51: من 30 - 50 سنة Male
A52: 0 | B52: 0 | C52: 203 | D52: 0 | E52: 203 | F52: جمهورية مصر العربية | G52: من 30 - 50 سنة Female
A53: 0 | B53: 0 | C53: 641 | D53: 0 | E53: 641 | F53: جمهورية مصر العربية | G53: من 50 - فما فوق Male
A54: 0 | B54: 0 | C54: 652 | D54: 0 | E54: 652 | F54: جمهورية مصر العربية | G54: من 50 - فما فوق Female
A55: 505 | B55: 474 | C55: 31 | D55: 93.861 | E55: 6.139 | F55: دولة قطر | G55: 10 - 18 سنة Male
A56: 12 | B56: 11 | C56: 1 | D56: 91.667 | E56: 8.333 | F56: دولة قطر | G56: 10 - 18 سنة Female
A57: 14 | B57: 12 | C57: 2 | D57: 85.714 | E57: 14.286 | F57: دولة قطر | G57: أطفال دون سن 10 سنوات Male
A58: 5 | B58: 4 | C58: 1 | D58: 80 | E58: 20 | F58: دولة قطر | G58: أطفال دون سن 10 سنوات Female
A59: 528 | B59: 444 | C59: 84 | D59: 84.091 | E59: 15.909 | F59: دولة قطر | G59: من 18 - 30 سنة Male
A60: 67 | B60: 64 | C60: 3 | D60: 95.522 | E60: 4.478 | F60: دولة قطر | G60: من 18 - 30 سنة Female
A61: 322 | B61: 305 | C61: 17 | D61: 94.72 | E61: 5.28 | F61: دولة قطر | G61: من 30 - 50 سنة Male
A62: 52 | B62: 47 | C62: 5 | D62: 90.385 | E62: 9.615 | F62: دولة قطر | G62: من 30 - 50 سنة Female
A63: 27 | B63: 8 | C63: 19 | D63: 29.63 | E63: 70.37 | F63: دولة قطر | G63: من 50 - فما فوق Male
A64: 3 | B64: 2 | C64: 1 | D64: 66.667 | E64: 33.333 | F64: دولة قطر | G64: من 50 - فما فوق Female
F65: سلطنة عمان
A66: 195 | B66: 140 | C66: 55 | D66: 71.795 | E66: 28.205 | F66: فلسطين | G66: 10 - 18 سنة Male
A67: 135 | B67: 100 | C67: 35 | D67: 74.074 | E67: 25.926 | F67: فلسطين | G67: 10 - 18 سنة Female
A68: 127 | B68: 80 | C68: 47 | D68: 62.992 | E68: 37.008 | F68: فلسطين | G68: أطفال دون سن 10 سنوات Male
A69: 120 | B69: 90 | C69: 30 | D69: 75 | E69: 25 | F69: فلسطين | G69: أطفال دون سن 10 سنوات Female
A70: 55 | B70: 35 | C70: 20 | D70: 63.636 | E70: 36.364 | F70: فلسطين | G70: من 18 - 30 سنة Male
A71: 40 | B71: 25 | C71: 15 | D71: 62.5 | E71: 37.5 | F71: فلسطين | G71: من 18 - 30 سنة Female
A72: 35 | B72: 20 | C72: 15 | D72: 57.143 | E72: 42.857 | F72: فلسطين | G72: من 30 - 50 سنة Male
A73: 30 | B73: 15 | C73: 15 | D73: 50 | E73: 50 | F73: فلسطين | G73: من 30 - 50 سنة Female
A74: 45 | B74: 30 | C74: 15 | D74: 66.667 | E74: 33.333 | F74: فلسطين | G74: من 50 - فما فوق Male
A75: 30 | B75: 20 | C75: 10 | D75: 66.667 | E75: 33.333 | F75: فلسطين | G75: من 50 - فما فوق Female
A76: 301 | B76: 296 | C76: 5 | D76: 98.339 | E76: 1.661 | F76: مملكة البحرين | G76: 10 - 18 سنة Male
A77: 140 | B77: 140 | C77: 0 | D77: 100 | E77: 0 | F77: مملكة البحرين | G77: 10 - 18 سنة Female
A78: 221 | B78: 216 | C78: 5 | D78: 97.738 | E78: 2.262 | F78: مملكة البحرين | G78: أطفال دون سن 10 سنوات Male
A79: 144 | B79: 142 | C79: 2 | D79: 98.611 | E79: 1.389 | F79: مملكة البحرين | G79: أطفال دون سن 10 سنوات Female
A80: 934 | B80: 911 | C80: 23 | D80: 97.537 | E80: 2.463 | F80: مملكة البحرين | G80: من 18 - 30 سنة Male
A81: 395 | B81: 392 | C81: 3 | D81: 99.241 | E81: 0.759 | F81: مملكة البحرين | G81: من 18 - 30 سنة Female
A82: 814 | B82: 789 | C82: 25 | D82: 96.929 | E82: 3.071 | F82: مملكة البحرين | G82: من 30 - 50 سنة Male
A83: 328 | B83: 325 | C83: 3 | D83: 99.085 | E83: 0.915 | F83: مملكة البحرين | G83: من 30 - 50 سنة Female
A84: 190 | B84: 179 | C84: 11 | D84: 94.211 | E84: 5.789 | F84: مملكة البحرين | G84: من 50 - فما فوق Male
A85: 56 | B85: 56 | C85: 0 | D85: 100 | E85: 0 | F85: مملكة البحرين | G85: من 50 - فما فوق Female

Sheet Sheet7 (hidden)
A1: CountryName | B1: DriversAgePeriods | C1: Drivers Per Age Category | D1: Number of Drivers
A2: الامارات العربية المتحدة
A3: الجمهورية التونسية
A4: الجمهورية العربية السورية
A5: الجمهورية اللبنانية
A6: الجمهورية اليمنية | B6: من 18 - 30 سنة | C6: 40 | D6: 40
A7: الجمهورية اليمنية | B7: من 18 - 50 سنة | C7: 40 | D7: 40
A8: الجمهورية اليمنية | B8: من 50 - فما فوق | C8: 20 | D8: 20
A9: المملكة الأردنية الهاشمية | B9: من 18 - 30 سنة | C9: 16.6 | D9: 128165
A10: المملكة الأردنية الهاشمية | B10: من 18 - 50 سنة | C10: 48 | D10: 369812
A11: المملكة الأردنية الهاشمية | B11: من 50 - فما فوق | C11: 35.4 | D11: 272539
A12: المملكة العربية السعودية | B12: من 18 - 30 سنة | C12: 32.9 | D12: 162418
A13: المملكة العربية السعودية | B13: من 18 - 50 سنة | C13: 54.5 | D13: 269006
A14: المملكة العربية السعودية | B14: من 50 - فما فوق | C14: 12.5 | D14: 61898
A15: المملكة المغربية
A16: جمهورية مصر العربية
A17: دولة قطر | B17: من 18 - 30 سنة | C17: 16.4 | D17: 69930
A18: دولة قطر | B18: من 18 - 50 سنة | C18: 67.6 | D18: 288451
A19: دولة قطر | B19: من 50 - فما فوق | C19: 16 | D19: 68162
A20: سلطنة عمان
A21: فلسطين | B21: من 18 - 30 سنة | C21: 22.8 | D21: 79753
A22: فلسطين | B22: من 18 - 50 سنة | C22: 65.2 | D22: 227993
A23: فلسطين | B23: من 50 - فما فوق | C23: 12 | D23: 41862
A24: مملكة البحرين | B24: من 18 - 30 سنة | C24: 23.6 | D24: 95123
A25: مملكة البحرين | B25: من 18 - 50 سنة | C25: 55.2 | D25: 223036
A26: مملكة البحرين | B26: من 50 - فما فوق | C26: 21.2 | D26: 85709

Sheet Sheet8 (hidden)
A1: Died | B1: DeathsPerCountry | C1: Injured | D1: InjuriesPerCountry | E1: Total | F1: CountryName | G1: DriverError
F2: الامارات العربية المتحدة
A3: 554 | B3: 41.1 | C3: 3353 | D3: 30.5 | E3: 3907 | F3: الجمهورية التونسية | G3: السرعة الزائدة
A4: 144 | B4: 10.7 | C4: 1198 | D4: 10.9 | E4: 1342 | F4: الجمهورية التونسية | G4: اتخاذ مسرب خاطيء
A5: 165 | B5: 12.2 | C5: 2065 | D5: 18.8 | E5: 2230 | F5: الجمهورية التونسية | G5: عدم التقيد بالعلامات المرورية
A6: 45 | B6: 3.3 | C6: 1131 | D6: 10.3 | E6: 1176 | F6: الجمهورية التونسية | G6: عدم اعطاء أولوية للمشاة
A7: 440 | B7: 32.6 | C7: 3231 | D7: 29.4 | E7: 3671 | F7: الجمهورية التونسية | G7: أخرى
F8: الجمهورية العربية السورية
F9: الجمهورية اللبنانية
F10: الجمهورية اليمنية
F11: المملكة الأردنية الهاشمية
A12: 0 | B12: 0 | C12: 0 | D12: 0 | E12: 99602 | F12: المملكة العربية السعودية | G12: السرعة الزائدة
A13: 0 | B13: 0 | C13: 0 | D13: 0 | E13: 13861 | F13: المملكة العربية السعودية | G13: عدم التقيد بالعلامات المرورية
A14: 0 | B14: 0 | C14: 0 | D14: 0 | E14: 27001 | F14: المملكة العربية السعودية | G14: تجاوز الاشارة الضوئية
A15: 0 | B15: 0 | C15: 0 | D15: 0 | E15: 325 | F15: المملكة العربية السعودية | G15: القيادة تحت تأثير الكحول أو المخدر أو المهدئات
A16: 0 | B16: 0 | C16: 0 | D16: 0 | E16: 19552 | F16: المملكة العربية السعودية | G16: أخرى
A17: 0 | B17: 0 | C17: 0 | D17: 0 | E17: 18233 | F17: المملكة المغربية | G17: القيادة بعكس اتجاه السير
A18: 0 | B18: 0 | C18: 0 | D18: 0 | E18: 5245 | F18: المملكة المغربية | G18: السرعة الزائدة
A19: 0 | B19: 0 | C19: 0 | D19: 0 | E19: 444 | F19: المملكة المغربية | G19: اتخاذ مسرب خاطيء
A20: 0 | B20: 0 | C20: 0 | D20: 0 | E20: 1467 | F20: المملكة المغربية | G20: عدم التقيد بالعلامات المرورية
A21: 0 | B21: 0 | C21: 0 | D21: 0 | E21: 924 | F21: المملكة المغربية | G21: تجاوز الاشارة الضوئية
A22: 0 | B22: 0 | C22: 0 | D22: 0 | E22: 823 | F22: المملكة المغربية | G22: القيادة تحت تأثير الكحول أو المخدر أو المهدئات
A23: 0 | B23: 0 | C23: 0 | D23: 0 | E23: 3773 | F23: المملكة المغربية | G23: عدم اعطاء أولوية للمشاة
A24: 0 | B24: 0 | C24: 0 | D24: 0 | E24: 23157 | F24: المملكة المغربية | G24: أخرى
F25: جمهورية مصر العربية
A26: 1 | B26: 0.6 | C26: 2 | D26: 0.1 | E26: 3 | F26: دولة قطر | G26: القيادة بعكس اتجاه السير
A27: 37 | B27: 22.6 | C27: 82 | D27: 6 | E27: 119 | F27: دولة قطر | G27: السرعة الزائدة
A28: 2 | B28: 1.2 | C28: 23 | D28: 1.7 | E28: 25 | F28: دولة قطر | G28: تجاوز الاشارة الضوئية
A29: 4 | B29: 2.4 | C29: 30 | D29: 2.2 | E29: 34 | F29: دولة قطر | G29: القيادة تحت تأثير الكحول أو المخدر أو المهدئات
A30: 5 | B30: 3 | C30: 14 | D30: 1 | E30: 19 | F30: دولة قطر | G30: عدم اعطاء أولوية للمشاة
A31: 115 | B31: 70.1 | C31: 1220 | D31: 89 | E31: 1335 | F31: دولة قطر | G31: أخرى
F32: سلطنة عمان
A33: 280 | B33: 70.9 | C33: 2220 | D33: 70.7 | E33: 2400 | F33: فلسطين | G33: القيادة بعكس اتجاه السير
A34: 115 | B34: 29.1 | C34: 920 | D34: 29.3 | E34: 1035 | F34: فلسطين | G34: السرعة الزائدة
A35: 0 | B35: 0 | C35: 11 | D35: 3 | E35: 11 | F35: مملكة البحرين | G35: القيادة بعكس اتجاه السير
A36: 27 | B36: 73 | C36: 86 | D36: 23.6 | E36: 113 | F36: مملكة البحرين | G36: السرعة الزائدة
A37: 2 | B37: 5.4 | C37: 41 | D37: 11.2 | E37: 43 | F37: مملكة البحرين | G37: اتخاذ مسرب خاطيء
A38: 2 | B38: 5.4 | C38: 144 | D38: 39.5 | E38: 146 | F38: مملكة البحرين | G38: عدم التقيد بالعلامات المرورية
A39: 6 | B39: 16.2 | C39: 83 | D39: 22.7 | E39: 89 | F39: مملكة البحرين | G39: القيادة تحت تأثير الكحول أو المخدر أو المهدئات

Sheet Sheet9 (hidden)
A1: Quantity | B1: TotalInjuries | C1: CountryName | D1: InjurySeriousness | E1: Seriousness injuries to total injuries
C2: الامارات العربية المتحدة
A3: 1656 | B3: 1656 | C3: الجمهورية التونسية | D3: وفاة | E3: 100
A4: 1653 | B4: 1653 | C4: الجمهورية العربية السورية | D4: وفاة | E4: 100
C5: الجمهورية اللبنانية
A6: 2204 | B6: 24200 | C6: الجمهورية اليمنية | D6: وفاة | E6: 9.1
A7: 5953 | B7: 24200 | C7: الجمهورية اليمنية | D7: اصابة خطرة (تحتاج الى مبيت في المستشف ى لمدة لاتقل عن خمسة عشر يوما) | E7: 24.6
A8: 7704 | B8: 24200 | C8: الجمهورية اليمنية | D8: اصابة متوسطة (تحتاج الى مبيت في المستشفى) | E8: 31.8
A9: 8339 | B9: 24200 | C9: الجمهورية اليمنية | D9: اصابة بسيطة (لاتحتاج الى مبيت في المستشفى) (عدد) | E9: 34.5
A10: 577 | B10: 16836 | C10: المملكة الأردنية الهاشمية | D10: وفاة | E10: 3.4
A11: 407 | B11: 16836 | C11: المملكة الأردنية الهاشمية | D11: اصابة خطرة (تحتاج الى مبيت في المستشف ى لمدة لاتقل عن خمسة عشر يوما) | E11: 2.4
A12: 3879 | B12: 16836 | C12: المملكة الأردنية الهاشمية | D12: اصابة متوسطة (تحتاج الى مبيت في المستشفى) | E12: 23
A13: 11973 | B13: 16836 | C13: المملكة الأردنية الهاشمية | D13: اصابة بسيطة (لاتحتاج الى مبيت في المستشفى) (عدد) | E13: 71.1
A14: 4022 | B14: 293281 | C14: المملكة العربية السعودية | D14: وفاة | E14: 1.4
A15: 21753 | B15: 293281 | C15: المملكة العربية السعودية | D15: اصابة خطرة (تحتاج الى مبيت في المستشف ى لمدة لاتقل عن خمسة عشر يوما) | E15: 7.4
A16: 267506 | B16: 293281 | C16: المملكة العربية السعودية | D16: اصابة متوسطة (تحتاج الى مبيت في المستشفى) | E16: 91.2
A17: 3894 | B17: 84044 | C17: المملكة المغربية | D17: وفاة | E17: 4.6
A18: 13579 | B18: 84044 | C18: المملكة المغربية | D18: اصابة خطرة (تحتاج الى مبيت في المستشف ى لمدة لاتقل عن خمسة عشر يوما) | E18: 16.2
A19: 66571 | B19: 84044 | C19: المملكة المغربية | D19: اصابة متوسطة (تحتاج الى مبيت في المستشفى) | E19: 79.2
A20: 4084 | B20: 4084 | C20: جمهورية مصر العربية | D20: وفاة | E20: 100
A21: 164 | B21: 1535 | C21: دولة قطر | D21: وفاة | E21: 10.7
A22: 313 | B22: 1535 | C22: دولة قطر | D22: اصابة خطرة (تحتاج الى مبيت في المستشف ى لمدة لاتقل عن خمسة عشر يوما) | E22: 20.4
A23: 420 | B23: 1535 | C23: دولة قطر | D23: اصابة متوسطة (تحتاج الى مبيت في المستشفى) | E23: 27.4
A24: 638 | B24: 1535 | C24: دولة قطر | D24: اصابة بسيطة (لاتحتاج الى مبيت في المستشفى) (عدد) | E24: 41.6
C25: سلطنة عمان
A26: 120 | B26: 2120 | C26: فلسطين | D26: وفاة | E26: 5.7
A27: 200 | B27: 2120 | C27: فلسطين | D27: اصابة خطرة (تحتاج الى مبيت في المستشف ى لمدة لاتقل عن خمسة عشر يوما) | E27: 9.4
A28: 800 | B28: 2120 | C28: فلسطين | D28: اصابة متوسطة (تحتاج الى مبيت في المستشفى) | E28: 37.7
A29: 1000 | B29: 2120 | C29: فلسطين | D29: اصابة بسيطة (لاتحتاج الى مبيت في المستشفى) (عدد) | E29: 47.2
A30: 77 | B30: 3523 | C30: مملكة البحرين | D30: وفاة | E30: 2.2
A31: 501 | B31: 3523 | C31: مملكة البحرين | D31: اصابة خطرة (تحتاج الى مبيت في المستشف ى لمدة لاتقل عن خمسة عشر يوما) | E31: 14.2
A32: 2945 | B32: 3523 | C32: مملكة البحرين | D32: اصابة بسيطة (لاتحتاج الى مبيت في المستشفى) (عدد) | E32: 83.6

Sheet Sheet10 (hidden)
A1: Died | B1: DeathsPerCountryLightningType | C1: Injured | D1: InjuriesPerCountryLightningType | E1: Total | F1: CountryName | G1: LightningType
F2: الامارات العربية المتحدة
A3: 916 | B3: 55.3 | C3: 9999 | D3: 63.7 | E3: 10915 | F3: الجمهورية التونسية | G3: نهارا
A4: 740 | B4: 44.7 | C4: 5699 | D4: 36.3 | E4: 6439 | F4: الجمهورية التونسية | G4: ليلا واضاءة كافية
F5: الجمهورية العربية السورية
F6: الجمهورية اللبنانية
F7: الجمهورية اليمنية
F8: المملكة الأردنية الهاشمية
F9: المملكة العربية السعودية
A10: 2075 | B10: 53.5 | C10: 48600 | D10: 57.5 | E10: 50675 | F10: المملكة المغربية | G10: نهارا
A11: 1803 | B11: 46.5 | C11: 35922 | D11: 42.5 | E11: 37725 | F11: المملكة المغربية | G11: ليلا واضاءة كافية
F12: جمهورية مصر العربية
A13: 110 | B13: 67.1 | C13: 1189 | D13: 86.7 | E13: 1299 | F13: دولة قطر | G13: نهارا
A14: 52 | B14: 31.7 | C14: 176 | D14: 12.8 | E14: 228 | F14: دولة قطر | G14: ليلا واضاءة كافية
A15: 2 | B15: 1.2 | C15: 6 | D15: 0.4 | E15: 8 | F15: دولة قطر | G15: ليلا واضاءة غير كافية
F16: سلطنة عمان
A17: 140 | B17: 100 | C17: 152 | D17: 100 | E17: 292 | F17: فلسطين | G17: نهارا
A18: 40 | B18: 51.9 | C18: 1779 | D18: 51.6 | E18: 1819 | F18: مملكة البحرين | G18: نهارا
A19: 31 | B19: 40.3 | C19: 1030 | D19: 29.9 | E19: 1061 | F19: مملكة البحرين | G19: ليلا واضاءة كافية
A20: 4 | B20: 5.2 | C20: 602 | D20: 17.5 | E20: 606 | F20: مملكة البحرين | G20: ليلا واضاءة غير كافية
A21: 2 | B21: 2.6 | C21: 35 | D21: 1 | E21: 37 | F21: مملكة البحرين | G21: ظلام

Sheet Sheet11 (hidden)
A1: Died | B1: Injured | C1: Total | D1: CountryName | E1: LandType | F1: Deaths per Country Road Land Condition | G1: Injuries per Country Road Land Condition
D2: الامارات العربية المتحدة
D3: الجمهورية التونسية
D4: الجمهورية العربية السورية
D5: الجمهورية اللبنانية
D6: الجمهورية اليمنية
D7: المملكة الأردنية الهاشمية
D8: المملكة العربية السعودية
A9: 2932 | B9: 47513 | C9: 50445 | D9: المملكة المغربية | E9: جاف | F9: 91 | G9: 93.9
A10: 215 | B10: 2598 | C10: 2813 | D10: المملكة المغربية | E10: مبتل | F10: 6.7 | G10: 5.1
A11: 2 | B11: 28 | C11: 30 | D11: المملكة المغربية | E11: ثلجي | F11: 0.1 | G11: 0.1
A12: 34 | B12: 115 | C12: 149 | D12: المملكة المغربية | E12: طيني | F12: 1.1 | G12: 0.2
A13: 38 | B13: 339 | C13: 377 | D13: المملكة المغربية | E13: زيتي | F13: 1.2 | G13: 0.7
D14: جمهورية مصر العربية
A15: 161 | B15: 1359 | C15: 1520 | D15: دولة قطر | E15: جاف | F15: 98.2 | G15: 99.1
A16: 3 | B16: 12 | C16: 15 | D16: دولة قطر | E16: ترابي/رملي | F16: 1.8 | G16: 0.9
D17: سلطنة عمان
D18: فلسطين
A19: 35 | B19: 2516 | C19: 2551 | D19: مملكة البحرين | E19: جاف | F19: 45.5 | G19: 73
A20: 2 | B20: 49 | C20: 51 | D20: مملكة البحرين | E20: مبتل | F20: 2.6 | G20: 1.4
A21: 0 | B21: 3 | C21: 3 | D21: مملكة البحرين | E21: طيني | F21: 0 | G21: 0.1
A22: 0 | B22: 2 | C22: 2 | D22: مملكة البحرين | E22: زيتي | F22: 0 | G22: 0.1
A23: 40 | B23: 876 | C23: 916 | D23: مملكة البحرين | E23: ترابي/رملي | F23: 51.9 | G23: 25.4

Sheet Sheet12 (hidden)
A1: CountryName | B1: RoadType | C1: Number of Accidents | D1: Road Type Percentage
A2: الامارات العربية المتحدة | B2: طرق سريعة (خارجية) | C2: 534 | D2: 27.8
A3: الامارات العربية المتحدة | B3: طرق مزدوجة (داخلية) | C3: 345 | D3: 18
A4: الامارات العربية المتحدة | B4: طرق زراعية | C4: 80 | D4: 4.2
A5: الامارات العربية المتحدة | B5: المجموع | C5: 959 | D5: 50
A6: الجمهورية التونسية | B6: طرق سريعة (خارجية) | C6: 4061 | D6: 24.5
A7: الجمهورية التونسية | B7: طرق مزدوجة (داخلية) | C7: 192 | D7: 1.2
A8: الجمهورية التونسية | B8: طرق زراعية | C8: 6511 | D8: 39.3
A9: الجمهورية التونسية | B9: أخرى | C9: 5810 | D9: 35.1
A10: الجمهورية العربية السورية | B10: طرق سريعة (خارجية) | C10: 1014 | D10: 2.2
A11: الجمهورية العربية السورية | B11: طرق مزدوجة (داخلية) | C11: 5973 | D11: 12.7
A12: الجمهورية العربية السورية | B12: طرق زراعية | C12: 40000 | D12: 85.1
A13: الجمهورية اللبنانية
A14: الجمهورية اليمنية | B14: طرق سريعة (خارجية) | C14: 10836 | D14: 23.1
A15: الجمهورية اليمنية | B15: طرق زراعية | C15: 12624 | D15: 26.9
A16: الجمهورية اليمنية | B16: المجموع | C16: 23460 | D16: 50
A17: المملكة الأردنية الهاشمية | B17: طرق مزدوجة (داخلية) | C17: 3031 | D17: 40.1
A18: المملكة الأردنية الهاشمية | B18: طرق زراعية | C18: 2483 | D18: 32.9
A19: المملكة الأردنية الهاشمية | B19: أخرى | C19: 2044 | D19: 27
A20: المملكة العربية السعودية | B20: طرق سريعة (خارجية) | C20: 51000 | D20: 15.2
A21: المملكة العربية السعودية | B21: طرق زراعية | C21: 117000 | D21: 34.8
A22: المملكة العربية السعودية | B22: المجموع | C22: 168000 | D22: 50
A23: المملكة المغربية
A24: جمهورية مصر العربية | B24: طرق سريعة (خارجية) | C24: 22500 | D24: 50
A25: جمهورية مصر العربية | B25: طرق مزدوجة (داخلية) | C25: 22500 | D25: 50
A26: دولة قطر | B26: طرق سريعة (خارجية) | C26: 688 | D26: 3.8
A27: دولة قطر | B27: طرق مزدوجة (داخلية) | C27: 482 | D27: 2.7
A28: دولة قطر | B28: أخرى | C28: 7768 | D28: 43.5
A29: دولة قطر | B29: المجموع | C29: 8939 | D29: 50
A30: سلطنة عمان | B30: طرق سريعة (خارجية) | C30: 12365 | D30: 16.6
A31: سلطنة عمان | B31: طرق مزدوجة (داخلية) | C31: 24862 | D31: 33.4
A32: سلطنة عمان | B32: المجموع | C32: 37227 | D32: 50
A33: فلسطين | B33: طرق سريعة (خارجية) | C33: 5284 | D33: 1.6
A34: فلسطين | B34: طرق مزدوجة (داخلية) | C34: 305560 | D34: 91.2
A35: فلسطين | B35: طرق زراعية | C35: 24119 | D35: 7.2
A36: مملكة البحرين | B36: طرق سريعة (خارجية) | C36: 440 | D36: 7.9
A37: مملكة البحرين | B37: طرق مزدوجة (داخلية) | C37: 487 | D37: 8.8
A38: مملكة البحرين | B38: أخرى | C38: 1841 | D38: 33.3
A39: مملكة البحرين | B39: المجموع | C39: 2768 | D39: 50

Sheet Sheet13 (hidden)
A1: Died | B1: Injured | C1: Total | D1: CountryName | E1: RoadUserType | F1: Deaths per Country Road User Condition | G1: Injuries per Country Road User Condition
A2: 243 | B2: 1608 | C2: 1851 | D2: الامارات العربية المتحدة | E2: مشاة | F2: 29.5 | G2: 15.7
A3: 345 | B3: 4399 | C3: 4744 | D3: الامارات العربية المتحدة | E3: سائق المركبة | F3: 41.9 | G3: 43
A4: 236 | B4: 4226 | C4: 4462 | D4: الامارات العربية المتحدة | E4: المقاعد الخلفية للمركبة | F4: 28.6 | G4: 41.3
A5: 497 | B5: 4296 | C5: 4793 | D5: الجمهورية التونسية | E5: مشاة | F5: 30 | G5: 27.4
A6: 688 | B6: 7242 | C6: 7930 | D6: الجمهورية التونسية | E6: سائق المركبة | F6: 41.5 | G6: 46.1
A7: 471 | B7: 4160 | C7: 4631 | D7: الجمهورية التونسية | E7: المقاعد الخلفية للمركبة | F7: 28.4 | G7: 26.5
D8: الجمهورية العربية السورية
D9: الجمهورية اللبنانية
D10: الجمهورية اليمنية
D11: المملكة الأردنية الهاشمية
D12: المملكة العربية السعودية
A13: 1176 | B13: 18465 | C13: 19643 | D13: المملكة المغربية | E13: مشاة | F13: 30.2 | G13: 23
A14: 1434 | B14: 32820 | C14: 34254 | D14: المملكة المغربية | E14: سائق المركبة | F14: 36.8 | G14: 40.9
A15: 1116 | B15: 27260 | C15: 28376 | D15: المملكة المغربية | E15: المقاعد الخلفية للمركبة | F15: 28.7 | G15: 34
A16: 168 | B16: 1603 | C16: 1771 | D16: المملكة المغربية | E16: ركاب الحافلة | F16: 4.3 | G16: 2
D17: جمهورية مصر العربية
A18: 35 | B18: 108 | C18: 143 | D18: دولة قطر | E18: مشاة | F18: 21.3 | G18: 7.9
A19: 77 | B19: 122 | C19: 196 | D19: دولة قطر | E19: سائق المركبة | F19: 47 | G19: 8.9
A20: 30 | B20: 710 | C20: 740 | D20: دولة قطر | E20: بجانب السائق | F20: 18.3 | G20: 51.8
A21: 20 | B21: 414 | C21: 434 | D21: دولة قطر | E21: المقاعد الخلفية للمركبة | F21: 12.2 | G21: 30.2
A22: 2 | B22: 17 | C22: 19 | D22: دولة قطر | E22: ركاب الحافلة | F22: 1.2 | G22: 1.2
A23: 152 | B23: 606 | C23: 758 | D23: سلطنة عمان | E23: مشاة | F23: 23.9 | G23: 9.1
A24: 226 | B24: 2705 | C24: 2931 | D24: سلطنة عمان | E24: سائق المركبة | F24: 35.5 | G24: 40.8
A25: 259 | B25: 3325 | C25: 3584 | D25: سلطنة عمان | E25: ركاب الحافلة | F25: 40.7 | G25: 50.1
A26: 20 | B26: 430 | C26: 450 | D26: فلسطين | E26: مشاة | F26: 9.1 | G26: 49.4
A27: 120 | B27: 280 | C27: 400 | D27: فلسطين | E27: سائق المركبة | F27: 54.5 | G27: 32.2
A28: 80 | B28: 160 | C28: 240 | D28: فلسطين | E28: بجانب السائق | F28: 36.4 | G28: 18.4
D29: مملكة البحرين

Sheet Sheet14 (hidden)
A1: Amin | B1: Injured | C1: Total | D1: CountryName | E1: WeatherType | F1: Deaths per Weather Condition | G1: Injuries per Weather Condition
D2: الامارات العربية المتحدة
D3: الجمهورية التونسية
D4: الجمهورية العربية السورية
D5: الجمهورية اللبنانية
A6: 2447 | B6: 14598 | C6: 17040 | D6: الجمهورية اليمنية | E6: صافي | F6: 100 | G6: 100
D7: المملكة الأردنية الهاشمية
D8: المملكة العربية السعودية
A9: 2954 | B9: 47505 | C9: 50459 | D9: المملكة المغربية | E9: صافي | F9: 91.7 | G9: 93.9
A10: 27 | B10: 133 | C10: 160 | D10: المملكة المغربية | E10: ضباب | F10: 0.8 | G10: 0.3
A11: 184 | B11: 2308 | C11: 2492 | D11: المملكة المغربية | E11: ماطر | F11: 5.7 | G11: 4.6
A12: 3 | B12: 34 | C12: 37 | D12: المملكة المغربية | E12: ثلوج | F12: 0.1 | G12: 0.1
A13: 10 | B13: 39 | C13: 49 | D13: المملكة المغربية | E13: رياح | F13: 0.3 | G13: 0.1
A14: 43 | B14: 574 | C14: 617 | D14: المملكة المغربية | E14: غبار | F14: 1.3 | G14: 1.1
D15: جمهورية مصر العربية
A16: 164 | B16: 1371 | C16: 1535 | D16: دولة قطر | E16: صافي | F16: 100 | G16: 99.9
A17: 0 | B17: 2 | C17: 2 | D17: دولة قطر | E17: ضباب | F17: 0 | G17: 0.1
D18: سلطنة عمان
D19: فلسطين
A20: 33 | B20: 2485 | C20: 2518 | D20: مملكة البحرين | E20: صافي | F20: 42.9 | G20: 72.1
A21: 0 | B21: 7 | C21: 7 | D21: مملكة البحرين | E21: ضباب | F21: 0 | G21: 0.2
A22: 2 | B22: 14 | C22: 16 | D22: مملكة البحرين | E22: ماطر | F22: 2.6 | G22: 0.4
A23: 0 | B23: 8 | C23: 8 | D23: مملكة البحرين | E23: رياح | F23: 0 | G23: 0.2
A24: 42 | B24: 932 | C24: 974 | D24: مملكة البحرين | E24: غبار | F24: 54.5 | G24: 27

Sheet Residents Analysis

Sheet Literates Analysis

Sheet Drivers Analysis

Sheet Vehicles Analysis

Sheet Vehicles Analysis - 2

Sheet Roads Analysis

Sheet Fines Analysis

Sheet Accidents Analysis

Sheet Injures Analysis

Sheet Accident Causes

Sheet Accident Categories

Sheet Car License Types

Sheet Age Periods Analysis

Sheet Age Periods Analysis per Gender

Sheet Age Periods Percentages

Sheet Age Periods Percentages-Gender

Sheet Drivers Age Periods

Sheet Drivers Mistakes Analysis

Sheet Drivers Mistakes Percentages

Sheet Injury Seriousness Analysis

Sheet Injury Seriousness Percentages

Sheet Lightning Types Analysis

Sheet Road Condition Analysis

Sheet Road Types Analysis

Sheet Road User Condition Analysis

Sheet Weather Condition Analysis
